fUST/lending_fUST_20250924
["ID","MTS","AMOUNT","RATE_DAILY","PERIOD"]
[387366220,1758706233538,-480.0,0.00019218,2]
[387366221,1758706233547,-480.0,0.00019218,2]
[387366222,1758706233557,-656.96,0.00019218,2]
[387366223,1758706233567,-480.0,0.00019218,2]
[387366224,1758706233577,-480.0,0.00019218,2]
[387366225,1758706233586,-480.0,0.00019218,2]
[387366226,1758706233596,-261.19275366,0.00019218,2]
[387366227,1758706233606,-480.0,0.00019218,2]
[387366228,1758706233616,-480.0,0.00019218,2]
[387366229,1758706233627,-816.91,0.00019218,2]
[387366230,1758706233637,-480.0,0.00019218,2]
[387366231,1758706233647,-480.0,0.00019218,2]
[387366232,1758706233656,-480.0,0.00019218,2]
[387366233,1758706233666,-1280.81,0.00019218,2]
[387366234,1758706233675,-480.0,0.00019218,2]
[387366235,1758706233685,-480.0,0.00019218,2]
[387366236,1758706233695,-543.28,0.00019218,2]
[387366237,1758706233704,-480.0,0.00019218,2]
[387366238,1758706233713,-500.0,0.00019218,2]
[387366239,1758706233723,-500.0,0.00019218,2]
[387366240,1758706233732,-200.09621027,0.00019218,2]
[387366241,1758706233741,-500.0,0.00019218,2]
[387366242,1758706233751,-500.0,0.00019218,2]
[387366243,1758706233760,-500.0,0.00019218,2]
[387366244,1758706233770,-500.0,0.00019218,2]
[387366245,1758706233779,-500.0,0.00019218,2]
[387366246,1758706233788,-525.0,0.00019218,2]
[387366247,1758706233797,-500.0,0.00019218,2]
[387366248,1758706233807,-500.0,0.00019218,2]
[387366249,1758706233817,-496.8149882,0.00019218,2]
[387366250,1758706233827,-453.90998057,0.00019219,2]
[387366251,1758706233836,-480.0,0.00019219,2]
[387366252,1758706233845,-480.0,0.00019219,2]
[387366253,1758706233856,-480.0,0.00019219,2]
[387366254,1758706233865,-480.0,0.00019219,2]
[387366255,1758706233874,-480.0,0.00019219,2]
[387366256,1758706233884,-490.17240459,0.00019219,2]
[387366257,1758706233894,-480.0,0.00019219,2]
[387366258,1758706233903,-480.0,0.00019219,2]
[387366259,1758706233913,-480.0,0.00019219,2]
[387366260,1758706233922,-402.21779819,0.00019219,2]
[387366261,1758706233931,-480.0,0.00019219,2]
[387366262,1758706233941,-480.0,0.00019219,2]
[387366263,1758706233950,-480.0,0.00019219,2]
[387366264,1758706233959,-480.0,0.00019219,2]
[387366265,1758706233968,-480.0,0.00019219,2]
[387366266,1758706233977,-480.0,0.00019219,2]
[387366267,1758706233987,-480.0,0.00019219,2]
[387366268,1758706233996,-480.0,0.00019219,2]
[387366269,1758706234006,-480.0,0.00019219,2]
[387366270,1758706234016,-480.0,0.00019219,2]
[387366271,1758706234025,-480.0,0.00019219,2]
[387366272,1758706234035,-480.0,0.00019219,2]
[387366273,1758706234044,-480.0,0.00019219,2]
[387366274,1758706234053,-480.0,0.00019219,2]
[387366275,1758706234062,-480.0,0.00019219,2]
[387366276,1758706234072,-480.0,0.00019219,2]
[387366277,1758706234082,-480.0,0.00019219,2]
[387366278,1758706234091,-480.0,0.00019219,2]
[387366279,1758706234101,-480.0,0.00019219,2]
[387366280,1758706234111,-480.0,0.00019219,2]
[387366281,1758706234120,-480.0,0.00019219,2]
[387366282,1758706234129,-480.0,0.00019219,2]
[387366283,1758706234138,-296.79685513,0.00019219,2]
[387366284,1758706234148,-480.0,0.00019219,2]
[387366285,1758706234157,-480.0,0.00019219,2]
[387366286,1758706234166,-480.0,0.00019219,2]
[387366287,1758706234175,-498.18,0.00019219,2]
[387366288,1758706234185,-480.0,0.00019219,2]
[387366289,1758706234195,-480.0,0.00019219,2]
[387366290,1758706234204,-480.0,0.00019219,2]
[387366291,1758706234213,-480.0,0.00019219,2]
[387366292,1758706234222,-480.0,0.00019219,2]
[387366293,1758706234231,-480.0,0.00019219,2]
[387366294,1758706234240,-486.09676151,0.00019219,2]
[387366295,1758706234250,-480.0,0.00019219,2]
[387366296,1758706234259,-480.0,0.00019219,2]
[387366297,1758706234268,-480.0,0.00019219,2]
[387366298,1758706234278,-480.0,0.00019219,2]
[387366299,1758706234288,-480.0,0.00019219,2]
[387366300,1758706234297,-480.0,0.00019219,2]
[387366301,1758706234307,-294.57052935,0.00019219,2]
[387366302,1758706234316,-480.0,0.00019219,2]
[387366303,1758706234326,-480.0,0.00019219,2]
[387366304,1758706234335,-480.0,0.00019219,2]
[387366305,1758706234345,-480.0,0.00019219,2]
[387366306,1758706234355,-480.0,0.00019219,2]
[387366307,1758706234364,-480.0,0.00019219,2]
[387366308,1758706234374,-481.59540411,0.00019219,2]
[387366309,1758706234384,-160.78797113,0.00019219,2]
[387366310,1758706234393,-480.0,0.00019219,2]
[387366311,1758706234403,-1190.57,0.00019219,2]
[387366312,1758706234412,-480.0,0.00019219,2]
[387366313,1758706234421,-480.0,0.00019219,2]
[387366314,1758706234430,-600.02,0.00019219,2]
[387366315,1758706234440,-480.0,0.00019219,2]
[387366316,1758706234449,-480.0,0.00019219,2]
[387366317,1758706234459,-480.0,0.00019219,2]
[387366318,1758706234468,-480.0,0.00019219,2]
[387366319,1758706234478,-480.0,0.00019219,2]
[387366320,1758706234487,-480.0,0.00019219,2]
[387366321,1758706234497,-480.0,0.00019219,2]
[387366322,1758706234506,-480.0,0.00019219,2]
[387366323,1758706234517,-480.0,0.00019219,2]
[387366324,1758706234529,-480.0,0.00019219,2]
[387366325,1758706234538,-1552.88,0.00019219,2]
[387366326,1758706234548,-480.0,0.00019219,2]
[387366327,1758706234558,-480.0,0.00019219,2]
[387366328,1758706234568,-480.0,0.00019219,2]
[387366329,1758706234577,-480.0,0.00019219,2]
[387366330,1758706234587,-480.0,0.00019219,2]
[387366331,1758706234598,-480.0,0.00019219,2]
[387366332,1758706234608,-480.0,0.00019219,2]
[387366333,1758706234617,-480.0,0.00019219,2]
[387366334,1758706234626,-480.0,0.00019219,2]
[387366335,1758706234636,-480.0,0.00019219,2]
[387366336,1758706234646,-584.28,0.00019219,2]
[387366337,1758706234655,-480.0,0.00019219,2]
[387366338,1758706234664,-480.0,0.00019219,2]
[387366339,1758706234675,-480.0,0.00019219,2]
[387366340,1758706234685,-480.0,0.00019219,2]
[387366341,1758706234694,-156.87806857,0.00019219,2]
[387366342,1758706234703,-480.0,0.00019219,2]
[387366343,1758706234713,-480.0,0.00019219,2]
[387366344,1758706234723,-480.0,0.00019219,2]
[387366345,1758706234733,-224.12386359,0.00019219,2]
[387366346,1758706234742,-483.01399161,0.00019219,2]
[387366347,1758706234827,-480.0,0.00019219,2]
[387366348,1758706234838,-480.0,0.00019219,2]
[387366349,1758706234848,-480.0,0.00019219,2]
[387366350,1758706234858,-480.0,0.00019219,2]
[387366351,1758706234868,-480.0,0.00019219,2]
[387366352,1758706234877,-480.0,0.0001922,2]
[387366353,1758706234886,-480.0,0.0001922,2]
[387366354,1758706234896,-480.0,0.0001922,2]
[387366355,1758706234907,-486.46651748,0.0001922,2]
[387366356,1758706234917,-480.0,0.0001922,2]
[387366357,1758706234926,-480.0,0.0001922,2]
[387366358,1758706234935,-486.17529755,0.0001922,2]
[387366359,1758706234944,-480.0,0.0001922,2]
[387366360,1758706234953,-177.30214189,0.0001922,2]
[387366361,1758706234963,-480.0,0.0001922,2]
[387366362,1758706234972,-480.0,0.0001922,2]
[387366363,1758706234982,-480.0,0.0001922,2]
[387366364,1758706234991,-480.0,0.0001922,2]
[387366365,1758706235000,-480.0,0.0001922,2]
[387366366,1758706235009,-480.0,0.0001922,2]
[387366367,1758706235018,-480.0,0.0001922,2]
[387366368,1758706235027,-480.0,0.0001922,2]
[387366369,1758706235036,-480.0,0.0001922,2]
[387366370,1758706235046,-448.44393124,0.0001922,2]
[387366371,1758706235055,-239.79753875,0.0001922,2]
[387366372,1758706235066,-488.72230745,0.0001922,2]
[387366373,1758706235076,-491.96788524,0.0001922,2]
[387366374,1758706235087,-483.77828543,0.0001922,2]
[387366375,1758706235098,-480.0,0.0001922,2]
[387366376,1758706235108,-497.03896248,0.0001922,2]
[387366377,1758706235117,-480.0,0.0001922,2]
[387366378,1758706235127,-480.0,0.0001922,2]
[387366379,1758706235136,-480.0,0.0001922,2]
[387366380,1758706235145,-480.0,0.0001922,2]
[387366381,1758706235155,-480.0,0.0001922,2]
[387366382,1758706235164,-233.09227744,0.0001922,2]
[387366383,1758706235174,-480.0,0.0001922,2]
[387366384,1758706235183,-480.0,0.0001922,2]
[387366385,1758706235193,-480.0,0.0001922,2]
[387366386,1758706235203,-480.0,0.0001922,2]
[387366387,1758706235211,-480.0,0.0001922,2]
[387366388,1758706235221,-480.0,0.0001922,2]
[387366389,1758706235230,-1380.11,0.0001922,2]
[387366390,1758706235239,-480.0,0.0001922,2]
[387366391,1758706235248,-480.0,0.0001922,2]
[387366392,1758706235257,-480.0,0.0001922,2]
[387366393,1758706235266,-480.0,0.0001922,2]
[387366394,1758706235275,-480.0,0.0001922,2]
[387366395,1758706235284,-2620.8,0.0001922,2]
[387366396,1758706235293,-597.23,0.0001922,2]
[387366397,1758706235302,-480.0,0.00019221,2]
[387366398,1758706235311,-480.0,0.00019221,2]
[387366399,1758706235321,-14863.16201271,0.00019252,2]
[387366400,1758706235330,-483.36541399,0.00019272,2]
[387366401,1758706235339,-480.0,0.00019272,2]
[387366402,1758706235348,-480.0,0.00019272,2]
[387366403,1758706235357,-480.0,0.00019272,2]
[387366404,1758706235367,-486.82094555,0.00019272,2]
[387366405,1758706235376,-605.88,0.00019272,2]
[387366406,1758706235385,-1000.0,0.00019351,2]
[387366407,1758706235394,-1000.0,0.00019351,2]
[387366408,1758706235404,-1000.0,0.00019351,2]
[387366409,1758706235413,-817.30269335,0.00019351,2]
[387366410,1758706235423,-500.0,0.00019351,2]
[387366411,1758706235432,-471.32669063,0.00019351,2]
[387366412,1758706235442,-500.0,0.00019351,2]
[387366413,1758706235451,-500.0,0.00019351,2]
[387366414,1758706235460,-151.0,0.00019352,2]
[387366415,1758706235470,-151.0,0.00019352,2]
[387366416,1758706235479,-152.648889,0.00019352,2]
[387366417,1758706235488,-164.46544,0.00019352,2]
[387366418,1758706235498,-151.83651,0.00019352,2]
[387366419,1758706235507,-151.0,0.00019352,2]
[387366420,1758706235517,-151.0,0.00019352,2]
[387366421,1758706235529,-151.614912,0.00019352,2]
[387366422,1758706235537,-151.0,0.00019352,2]
[387366423,1758706235547,-151.461823,0.00019352,2]
[387366424,1758706235557,-151.0,0.00019352,2]
[387366425,1758706235566,-151.0,0.00019352,2]
[387366426,1758706235575,-153.068805,0.00019352,2]
[387366427,1758706235583,-154.239552,0.00019352,2]
[387366428,1758706235592,-151.0,0.00019352,2]
[387366429,1758706235602,-153.592182,0.00019352,2]
[387366430,1758706235612,-163.218951,0.00019352,2]
[387366431,1758706235621,-30074.28639874,0.00019352,2]
[387366435,1758706238546,-1516.8037116,0.0001912,2]
[387366436,1758706238556,-480.0,0.00019218,2]
[387366437,1758706238567,-480.0,0.00019218,2]
[387366438,1758706238576,-480.0,0.00019218,2]
[387366439,1758706238586,-1516.8037116,0.00019257,2]
[387366440,1758706238596,-151.0,0.00019352,2]
[387366441,1758706238606,-303715.29531965,0.00019352,2]
[387366442,1758706238615,-565.83279145,0.00019373,2]
[387366443,1758706238625,-214.38354973,0.00019373,2]
[387366444,1758706238634,-505.04887399,0.00019373,2]
[387366445,1758706238643,-501.24716361,0.00019373,2]
[387366446,1758706238653,-500.56568405,0.00019373,2]
[387366447,1758706238662,-245.40225416,0.00019373,2]
[387366448,1758706238671,-500.0,0.00019373,2]
[387366449,1758706238680,-500.73192138,0.00019373,2]
[387366450,1758706238689,-502.61635189,0.00019373,2]
[387366451,1758706238698,-503.1964171,0.00019373,2]
[387366452,1758706238707,-500.0,0.00019373,2]
[387366454,1758706238716,-500.0,0.00019373,2]
[387366455,1758706238725,-500.0,0.00019373,2]
[387366456,1758706238734,-158.5997713,0.00019373,2]
[387366457,1758706238743,-500.94151046,0.00019373,2]
[387366458,1758706238752,-500.0,0.00019373,2]
[387366459,1758706238761,-500.0,0.00019373,2]
[387366460,1758706238770,-500.0,0.00019373,2]
[387366461,1758706238779,-353.38703816,0.00019373,2]
[387366462,1758706238788,-500.81366583,0.00019373,2]
[387366463,1758706238797,-500.0,0.00019373,2]
[387366464,1758706238806,-510.80121388,0.00019373,2]
[387366465,1758706238815,-500.0,0.00019373,2]
[387366466,1758706238825,-500.0,0.00019373,2]
[387366467,1758706238834,-366.57934165,0.00019373,2]
[387366468,1758706238843,-506.42210844,0.00019373,2]
[387366469,1758706238852,-500.0,0.00019373,2]
[387366470,1758706238863,-500.0,0.00019373,2]
[387366471,1758706238951,-500.0,0.00019373,2]
[387366472,1758706238961,-500.0,0.00019373,2]
[387366473,1758706238972,-500.0,0.00019373,2]
[387366474,1758706238981,-500.0,0.00019373,2]
[387366475,1758706238991,-500.0,0.00019373,2]
[387366476,1758706239001,-500.0,0.00019373,2]
[387366477,1758706239010,-500.0,0.00019373,2]
[387366478,1758706239019,-500.0,0.00019373,2]
[387366479,1758706239029,-500.0,0.00019373,2]
[387366480,1758706239039,-417.25,0.00019397,2]
[387366481,1758706239049,-1753.1,0.00019425,2]
[387366482,1758706239058,-480.0,0.00019491,2]
[387366483,1758706239067,-480.0,0.00019491,2]
[387366484,1758706239076,-480.0,0.00019491,2]
[387366485,1758706239086,-515.63,0.00019491,2]
[387366486,1758706239096,-480.0,0.00019492,2]
[387366487,1758706239106,-480.0,0.00019492,2]
[387366488,1758706239115,-480.0,0.00019492,2]
[387366489,1758706239125,-480.0,0.00019492,2]
[387366490,1758706239134,-480.0,0.00019492,2]
[387366491,1758706239144,-480.0,0.00019492,2]
[387366492,1758706239154,-480.0,0.00019492,2]
[387366493,1758706239164,-490.72479297,0.00019492,2]
[387366494,1758706239172,-480.0,0.00019492,2]
[387366495,1758706239182,-480.0,0.00019492,2]
[387366496,1758706239192,-692.63,0.00019492,2]
[387366497,1758706239202,-316.4973062,0.00019492,2]
[387366498,1758706239211,-490.78106886,0.00019492,2]
[387366499,1758706239221,-713.34,0.00019492,2]
[387366500,1758706239230,-486.09770782,0.00019492,2]
[387366501,1758706239240,-480.0,0.00019492,2]
[387366502,1758706239249,-480.0,0.00019492,2]
[387366503,1758706239258,-480.0,0.00019492,2]
[387366504,1758706239270,-480.0,0.00019492,2]
[387366505,1758706239279,-480.0,0.00019492,2]
[387366506,1758706239290,-480.0,0.00019492,2]
[387366507,1758706239300,-480.0,0.00019492,2]
[387366508,1758706239310,-480.0,0.00019492,2]
[387366509,1758706239318,-480.0,0.00019492,2]
[387366510,1758706239328,-480.0,0.00019492,2]
[387366511,1758706239337,-480.0,0.00019492,2]
[387366512,1758706239346,-480.0,0.00019492,2]
[387366513,1758706239355,-480.0,0.00019492,2]
[387366514,1758706239364,-480.0,0.00019492,2]
[387366515,1758706239374,-487.79798462,0.00019492,2]
[387366516,1758706239382,-480.0,0.00019492,2]
[387366517,1758706239391,-480.0,0.00019492,2]
[387366518,1758706239401,-480.0,0.00019492,2]
[387366519,1758706239410,-480.0,0.00019492,2]
[387366520,1758706239419,-480.0,0.00019492,2]
[387366521,1758706239429,-480.0,0.00019492,2]
[387366522,1758706239438,-526.5904417,0.00019492,2]
[387366523,1758706239447,-494.79,0.00019492,2]
[387366524,1758706239456,-480.0,0.00019492,2]
[387366525,1758706239466,-480.0,0.00019492,2]
[387366526,1758706239475,-480.0,0.00019492,2]
[387366527,1758706239484,-480.0,0.00019492,2]
[387366528,1758706239493,-480.0,0.00019492,2]
[387366529,1758706239502,-656.96,0.00019492,2]
[387366530,1758706239511,-494.62463786,0.00019492,2]
[387366531,1758706239521,-480.0,0.00019492,2]
[387366532,1758706239532,-816.91,0.00019492,2]
[387366533,1758706239543,-480.0,0.00019492,2]
[387366534,1758706239552,-480.0,0.00019492,2]
[387366535,1758706239561,-1280.81,0.00019492,2]
[387366536,1758706239571,-480.0,0.00019492,2]
[387366537,1758706239580,-480.0,0.00019492,2]
[387366538,1758706239590,-543.28,0.00019492,2]
[387366539,1758706239600,-480.0,0.00019492,2]
[387366540,1758706239610,-540.79338447,0.00019492,2]
[387366541,1758706239619,-480.0,0.00019493,2]
[387366542,1758706239629,-462.21015604,0.00019493,2]
[387366543,1758706239638,-490.42354924,0.00019493,2]
[387366544,1758706239647,-480.0,0.00019493,2]
[387366545,1758706239656,-334.27914084,0.00019493,2]
[387366546,1758706239666,-480.0,0.00019493,2]
[387366547,1758706239675,-480.0,0.00019493,2]
[387366548,1758706239685,-492.46005353,0.00019493,2]
[387366549,1758706239694,-480.0,0.00019493,2]
[387366550,1758706239703,-480.0,0.00019493,2]
[387366551,1758706239712,-598.37751565,0.00019493,2]
[387366552,1758706239721,-480.0,0.00019493,2]
[387366553,1758706239730,-480.0,0.00019493,2]
[387366554,1758706239740,-480.0,0.00019493,2]
[387366555,1758706239749,-480.0,0.00019493,2]
[387366556,1758706239759,-480.0,0.00019493,2]
[387366557,1758706239768,-480.0,0.00019493,2]
[387366558,1758706239778,-480.0,0.00019493,2]
[387366559,1758706239787,-518.5340896,0.00019493,2]
[387366560,1758706239797,-480.0,0.00019493,2]
[387366561,1758706239806,-480.0,0.00019493,2]
[387366562,1758706239815,-480.0,0.00019493,2]
[387366563,1758706239824,-480.0,0.00019493,2]
[387366564,1758706239834,-480.0,0.00019493,2]
[387366565,1758706239843,-268.27972393,0.00019493,2]
[387366566,1758706239853,-498.18,0.00019493,2]
[387366567,1758706239863,-480.0,0.00019493,2]
[387366568,1758706239872,-480.0,0.00019493,2]
[387366569,1758706239888,-480.0,0.00019493,2]
[387366570,1758706239897,-480.0,0.00019493,2]
[387366571,1758706239907,-480.0,0.00019493,2]
[387366572,1758706239916,-480.0,0.00019493,2]
[387366573,1758706239926,-480.0,0.00019493,2]
[387366574,1758706239935,-480.0,0.00019493,2]
[387366575,1758706239943,-480.0,0.00019493,2]
[387366576,1758706239953,-480.0,0.00019493,2]
[387366577,1758706239962,-1190.57,0.00019493,2]
[387366578,1758706239971,-480.0,0.00019493,2]
[387366579,1758706239980,-480.0,0.00019493,2]
[387366580,1758706239989,-600.02,0.00019493,2]
[387366581,1758706239999,-480.0,0.00019493,2]
[387366582,1758706240008,-480.0,0.00019493,2]
[387366583,1758706240018,-480.0,0.00019493,2]
[387366584,1758706240027,-480.0,0.00019493,2]
[387366585,1758706240037,-622.13214251,0.00019493,2]
[387366586,1758706240046,-480.0,0.00019493,2]
[387366587,1758706240055,-480.0,0.00019493,2]
[387366588,1758706240065,-1552.88,0.00019493,2]
[387366589,1758706240074,-480.0,0.00019493,2]
[387366590,1758706240083,-480.0,0.00019493,2]
[387366591,1758706240093,-480.0,0.00019493,2]
[387366592,1758706240102,-480.0,0.00019493,2]
[387366593,1758706240111,-151.0,0.00019493,2]
[387366594,1758706240122,-480.0,0.00019493,2]
[387366596,1758706240131,-480.0,0.00019493,2]
[387366597,1758706240140,-151.0,0.00019493,2]
[387366599,1758706240150,-480.0,0.00019493,2]
[387366600,1758706240160,-584.28,0.00019493,2]
[387366601,1758706240173,-480.0,0.00019493,2]
[387366602,1758706240183,-151.0,0.00019493,2]
[387366603,1758706240193,-159.783158,0.00019493,2]
[387366604,1758706240204,-480.0,0.00019493,2]
[387366605,1758706240214,-239.62997964,0.00019493,2]
[387366606,1758706240225,-480.0,0.00019493,2]
[387366607,1758706240236,-480.0,0.00019494,2]
[387366608,1758706240245,-480.0,0.00019494,2]
[387366609,1758706240256,-480.0,0.00019494,2]
[387366610,1758706240266,-480.0,0.00019494,2]
[387366611,1758706240275,-480.0,0.00019494,2]
[387366612,1758706240284,-151.0,0.00019494,2]
[387366613,1758706240293,-480.0,0.00019494,2]
[387366614,1758706240303,-485.63737398,0.00019494,2]
[387366615,1758706240312,-480.0,0.00019494,2]
[387366616,1758706240322,-480.0,0.00019494,2]
[387366618,1758706240330,-506.69692709,0.00019494,2]
[387366619,1758706240339,-480.0,0.00019494,2]
[387366620,1758706240349,-512.9911209,0.00019494,2]
[387366621,1758706240358,-480.0,0.00019494,2]
[387366622,1758706240367,-1380.11,0.00019494,2]
[387366623,1758706240377,-480.0,0.00019494,2]
[387366624,1758706240386,-480.0,0.00019494,2]
[387366625,1758706240396,-2620.8,0.00019494,2]
[387366626,1758706240405,-597.23,0.00019494,2]
[387366627,1758706240414,-480.0,0.00019495,2]
[387366628,1758706240424,-480.0,0.00019495,2]
[387366629,1758706240433,-480.0,0.00019546,2]
[387366631,1758706240443,-480.0,0.00019546,2]
[387366633,1758706240452,-605.88,0.00019546,2]
[387366635,1758706240461,-393.7762742,0.00019596,2]
[387366637,1758706240471,-480.0,0.00019765,2]
[387366639,1758706240480,-480.0,0.00019765,2]
[387366641,1758706240490,-480.0,0.00019765,2]
[387366643,1758706240499,-515.63,0.00019765,2]
[387366645,1758706240508,-480.0,0.00019766,2]
[387366653,1758706240584,-480.0,0.00019766,2]
[387366656,1758706240595,-480.0,0.00019766,2]
[387366658,1758706240605,-480.0,0.00019766,2]
[387366660,1758706240615,-480.0,0.00019766,2]
[387366662,1758706240624,-480.0,0.00019766,2]
[387366664,1758706240633,-605.40130858,0.00019766,2]
[387366666,1758706240642,-692.63,0.00019766,2]
[387366668,1758706240652,-713.34,0.00019766,2]
[387366670,1758706240660,-480.0,0.00019766,2]
[387366672,1758706240670,-480.0,0.00019766,2]
[387366674,1758706240679,-480.0,0.00019766,2]
[387366676,1758706240689,-480.0,0.00019766,2]
[387366678,1758706240698,-480.0,0.00019766,2]
[387366680,1758706240708,-480.0,0.00019766,2]
[387366682,1758706240717,-480.0,0.00019766,2]
[387366684,1758706240727,-480.0,0.00019766,2]
[387366686,1758706240736,-480.0,0.00019766,2]
[387366688,1758706240745,-480.0,0.00019766,2]
[387366690,1758706240754,-480.0,0.00019766,2]
[387366692,1758706240763,-480.0,0.00019766,2]
[387366694,1758706240773,-480.0,0.00019766,2]
[387366696,1758706240782,-480.0,0.00019766,2]
[387366698,1758706240791,-480.0,0.00019766,2]
[387366700,1758706240801,-480.0,0.00019766,2]
[387366702,1758706240810,-480.0,0.00019766,2]
[387366704,1758706240819,-480.0,0.00019766,2]
[387366706,1758706240828,-480.0,0.00019766,2]
[387366708,1758706240837,-494.79,0.00019766,2]
[387366710,1758706240846,-480.0,0.00019766,2]
[387366712,1758706240855,-480.0,0.00019766,2]
[387366714,1758706240865,-333.33041697,0.00019766,2]
[387366716,1758706240874,-480.0,0.00019766,2]
[387366718,1758706240883,-656.96,0.00019766,2]
[387366720,1758706240892,-480.0,0.00019766,2]
[387366722,1758706240902,-816.91,0.00019766,2]
[387366724,1758706240911,-480.0,0.00019766,2]
[387366726,1758706240920,-1280.81,0.00019766,2]
[387366728,1758706240929,-480.0,0.00019766,2]
[387366730,1758706240938,-543.28,0.00019766,2]
[387366732,1758706240948,-480.0,0.00019766,2]
[387366734,1758706240957,-480.0,0.00019767,2]
[387366736,1758706240966,-340.38828872,0.00019767,2]
[387366738,1758706240975,-480.0,0.00019767,2]
[387366740,1758706240984,-480.0,0.00019767,2]
[387366742,1758706240993,-365.95855477,0.00019767,2]
[387366744,1758706241002,-480.0,0.00019767,2]
[387366746,1758706241012,-480.0,0.00019767,2]
[387366748,1758706241021,-480.0,0.00019767,2]
[387366750,1758706241031,-480.0,0.00019767,2]
[387366752,1758706241047,-480.0,0.00019767,2]
[387366754,1758706241058,-480.0,0.00019767,2]
[387366756,1758706241067,-498.18,0.00019767,2]
[387366758,1758706241076,-480.0,0.00019767,2]
[387366760,1758706241086,-480.0,0.00019767,2]
[387366762,1758706241095,-480.0,0.00019767,2]
[387366764,1758706241104,-480.0,0.00019767,2]
[387366766,1758706241114,-480.0,0.00019767,2]
[387366768,1758706241123,-480.0,0.00019767,2]
[387366770,1758706241132,-480.0,0.00019767,2]
[387366772,1758706241141,-480.0,0.00019767,2]
[387366774,1758706241150,-480.0,0.00019767,2]
[387366776,1758706241159,-480.0,0.00019767,2]
[387366778,1758706241169,-1190.57,0.00019767,2]
[387366780,1758706241178,-480.0,0.00019767,2]
[387366782,1758706241186,-480.0,0.00019767,2]
[387366784,1758706241196,-600.02,0.00019767,2]
[387366786,1758706241205,-480.0,0.00019767,2]
[387366788,1758706241214,-480.0,0.00019767,2]
[387366790,1758706241224,-254.85924133,0.00019767,2]
[387366792,1758706241233,-480.0,0.00019767,2]
[387366794,1758706241242,-480.0,0.00019767,2]
[387366796,1758706241251,-480.0,0.00019767,2]
[387366798,1758706241260,-1552.88,0.00019767,2]
[387366800,1758706241269,-480.0,0.00019767,2]
[387366802,1758706241280,-480.0,0.00019767,2]
[387366804,1758706241290,-480.0,0.00019767,2]
[387366806,1758706241299,-259.28242693,0.00019767,2]
[387366808,1758706241309,-151.0,0.00019767,2]
[387366810,1758706241318,-517.9255138,0.00019767,2]
[387366812,1758706241328,-480.0,0.00019767,2]
[387366814,1758706241337,-185.482885,0.00019767,2]
[387366816,1758706241346,-480.0,0.00019767,2]
[387366818,1758706241355,-584.28,0.00019767,2]
[387366820,1758706241364,-480.0,0.00019767,2]
[387366822,1758706241373,-151.0,0.00019767,2]
[387366824,1758706241382,-480.0,0.00019767,2]
[387366826,1758706241391,-480.0,0.00019767,2]
[387366828,1758706241400,-480.0,0.00019768,2]
[387366830,1758706241409,-480.0,0.00019768,2]